lending/lending_fUSD_20260306
["ID","MTS","AMOUNT","RATE_DAILY","PERIOD"]
[407764261,1772776243248,-150.0,0.0001972,2]
[407764262,1772776243257,-150.0,0.0001972,2]
[407764263,1772776243267,-150.0,0.0001972,2]
[407764264,1772776243276,-182.0,0.0001972,2]
[407764265,1772776243285,-500.0,0.0001972,2]
[407764266,1772776243294,-153.26719895,0.00019723,2]
[407764267,1772776243303,-602.14594661,0.0001973,2]
[407764268,1772776243312,-226.22,0.0001976,2]
[407764269,1772776243321,-178.8948665,0.00019763,2]
[407764270,1772776243332,-1225.8,0.00019781,2]
[407764271,1772776243343,-1406.44011951,0.00019809,2]
[407764272,1772776243352,-1668.38028068,0.00019809,2]
[407764273,1772776243362,-2000.0,0.00019809,2]
[407764274,1772776243372,-2000.0,0.00019809,2]
[407764275,1772776243381,-6828.85633504,0.0001981,2]
[407764276,1772776243390,-152.0,0.00019815,22]
[407764277,1772776243399,-474.80483861,0.00019815,2]
[407764278,1772776243409,-500.0,0.0001984,2]
[407764279,1772776243419,-1500.0,0.00019868,2]
[407764280,1772776243428,-1042.17553834,0.00019868,2]
[407764281,1772776243437,-1500.0,0.00019868,2]
[407764282,1772776243447,-1500.0,0.00019868,2]
[407764283,1772776243458,-1500.0,0.00019868,2]
[407764284,1772776243468,-1500.0,0.00019868,2]
[407764285,1772776243477,-1500.0,0.00019868,2]
[407764286,1772776243486,-1500.0,0.00019868,2]
[407764287,1772776243495,-1500.0,0.00019868,2]
[407764288,1772776243504,-1500.0,0.00019868,2]
[407764289,1772776243514,-1500.0,0.00019868,2]
[407764290,1772776243524,-1500.0,0.00019868,2]
[407764291,1772776243533,-165.75564834,0.00019873,2]
[407764292,1772776243542,-2500.0,0.00019881,2]
[407764293,1772776243552,-2500.0,0.00019881,2]
[407764294,1772776243561,-1225.8,0.0001989,2]
[407764295,1772776243571,-200.0,0.00019899,2]
[407764296,1772776243580,-500.0,0.000199,2]
[407764297,1772776243589,-500.0,0.000199,2]
[407764298,1772776243598,-500.0,0.000199,2]
[407764299,1772776243607,-500.0,0.000199,2]
[407764300,1772776243616,-500.0,0.000199,2]
[407764301,1772776243625,-500.0,0.000199,2]
[407764302,1772776243635,-500.0,0.000199,2]
[407764303,1772776243643,-500.0,0.000199,2]
[407764304,1772776243654,-500.0,0.000199,2]
[407764305,1772776243664,-500.0,0.000199,2]
[407764306,1772776243673,-500.0,0.000199,2]
[407764307,1772776243682,-500.0,0.000199,2]
[407764308,1772776243691,-500.0,0.000199,2]
[407764309,1772776243700,-500.0,0.000199,2]
[407764310,1772776243709,-500.0,0.000199,2]
[407764311,1772776243718,-500.0,0.000199,2]
[407764312,1772776243728,-500.0,0.000199,2]
[407764313,1772776243738,-4732.9702,0.000199,2]
[407764314,1772776243747,-500.0,0.000199,2]
[407764315,1772776243756,-500.0,0.000199,2]
[407764316,1772776243765,-500.0,0.000199,2]
[407764317,1772776243775,-500.0,0.000199,2]
[407764318,1772776243784,-500.0,0.000199,2]
[407764319,1772776243793,-500.0,0.000199,2]
[407764320,1772776243803,-500.0,0.000199,2]
[407764321,1772776243812,-500.0,0.000199,2]
[407764322,1772776243821,-500.0,0.000199,2]
[407764323,1772776243831,-500.0,0.000199,2]
[407764324,1772776243840,-500.0,0.000199,2]
[407764325,1772776243849,-500.0,0.000199,2]
[407764326,1772776243858,-500.0,0.000199,2]
[407764327,1772776243868,-500.0,0.000199,2]
[407764328,1772776243877,-500.0,0.000199,2]
[407764329,1772776243886,-500.0,0.000199,2]
[407764330,1772776243895,-500.0,0.000199,2]
[407764331,1772776243904,-500.0,0.000199,2]
[407764332,1772776243913,-500.0,0.000199,2]
[407764333,1772776243923,-500.0,0.000199,2]
[407764334,1772776243933,-191.36410237,0.000199,2]
[407764335,1772776243943,-163.62362966,0.000199,2]
[407764336,1772776243952,-338.03249184,0.000199,2]
[407764337,1772776243962,-2902.43418882,0.000199,2]
[407764338,1772776243971,-2212.32021183,0.000199,2]
[407764339,1772776243981,-6153.0,0.000199,2]
[407764340,1772776243990,-5129.0,0.000199,2]
[407764341,1772776244000,-4000.0,0.00019908,2]
[407764342,1772776244009,-4000.0,0.00019908,2]
[407764343,1772776244018,-500.0,0.00019918,2]
[407764344,1772776244028,-1000.0,0.00019921,2]
[407764345,1772776244036,-1002.42005325,0.00019921,2]
[407764346,1772776244046,-1000.0,0.00019921,2]
[407764347,1772776244056,-1000.0,0.00019921,2]
[407764348,1772776244066,-250.0,0.00019921,2]
[407764349,1772776244075,-701.879034,0.0001997,2]
[407764350,1772776244084,-150.0,0.00019973,2]
[407764351,1772776244093,-503.16169822,0.0001998,2]
[407764352,1772776244102,-2500.0,0.00019981,2]
[407764353,1772776244111,-168.0,0.00019989,2]
[407764354,1772776244121,-1200.86262364,0.0001999,2]
[407764355,1772776244130,-320.06063573,0.0001999,2]
[407764356,1772776244139,-152.0,0.00019997,23]
[407764357,1772776244149,-151.0,0.00019997,2]
[407764358,1772776244158,-300.0,0.00019999,2]
[407764359,1772776244169,-300.0,0.00019999,2]
[407764360,1772776244180,-264.33186095,0.00019999,2]
[407764361,1772776244189,-1000.0,0.0002,7]
[407764362,1772776244199,-1000.0,0.0002,7]
[407764363,1772776244209,-1516346.72520124,0.0002,2]
[407764364,1772776244218,-200.0,0.0002,2]
[407764365,1772776244227,-302.3,0.0002,2]
[407764366,1772776244237,-150.0,0.0002,2]
[407764367,1772776244248,-10441.37485007,0.0002,2]
[407764368,1772776244258,-10000.0,0.0002,2]
[407764369,1772776244267,-5000.0,0.0002,7]
[407764370,1772776244276,-270.0,0.0002,2]
[407764371,1772776244285,-150.0,0.0002,2]
[407764372,1772776244295,-172.67,0.0002,7]
[407764373,1772776244304,-150.0,0.0002,2]
[407764374,1772776244315,-150.0,0.0002,2]
[407764375,1772776244324,-150.166,0.0002,2]
[407764376,1772776244333,-150.188,0.0002,2]
[407764377,1772776244343,-150.109,0.0002,2]
[407764378,1772776244353,-150.0,0.0002,2]
[407764379,1772776244363,-150.0,0.0002,2]
[407764380,1772776244372,-150.149,0.0002,2]
[407764381,1772776244382,-150.0,0.0002,2]
[407764382,1772776244391,-150.0,0.0002,2]
[407764383,1772776244400,-1359425.60488833,0.0002,2]
[407764384,1772776245139,-756.76739082,0.0002,2]
[407764385,1772776245150,-2117.25087516,0.0002,2]
[407764386,1772776245161,-535.25884779,0.0002,2]
[407764387,1772776245178,-1675.92432478,0.0002,2]
[407764388,1772776245189,-1180.68088954,0.0002,2]
[407764389,1772776245200,-3731.8588095,0.0002,2]
[407764390,1772776245303,-361.01643239,0.0002,2]
[407764391,1772776245328,-6333540.76649023,0.0002,2]
[407764394,1772776245754,-1006.43706492,0.00015937,2]
[407764395,1772776245764,-1035.15567566,0.0002,2]
[407764396,1772776245814,-637.669035,0.0002,2]
[407764400,1772776245988,-140695.85470467,0.0002,2]
[407764402,1772776245999,-44281.80000004,0.0002,2]
[407764411,1772776246167,-510.77693968,0.0002,2]
[407764415,1772776246867,-9916.54668199,0.00015936,2]
[407764416,1772776247104,-10000.01,0.00015936,2]
[407764417,1772776247236,-10000.01,0.00015936,2]
[407764418,1772776247381,-10000.01,0.00015936,2]
[407764419,1772776247499,-10000.01,0.00015936,2]
[407764420,1772776247607,-10000.01,0.00015936,2]
[407764421,1772776247730,-10000.01,0.00015936,2]
[407764422,1772776247853,-10000.01,0.00015936,2]
[407764423,1772776249863,-10000.01,0.00015936,2]
[407764424,1772776252948,508.0,0.00014,2]
[407764425,1772776283369,505.0,0.00014,2]
[407764426,1772776292763,1624.341,0.00015617,2]
[407764427,1772776292822,161.84,0.00015617,2]
[407764428,1772776295120,-300.0,0.00015935,2]
[407764429,1772776321491,300.0,0.00015935,2]
[407764430,1772776328528,225.35499456,0.00015836,2]
[407764431,1772776335769,179.97595802,0.00012,2]
[407764432,1772776383305,181.0,0.00015936,2]
[407764433,1772776391555,164.12,0.00014404,2]
[407764434,1772776441280,300.0,0.00015935,2]
[407764435,1772776441606,2407.82334439,0.00015836,2]
[407764436,1772776442841,300.0,0.00015935,2]
[407764437,1772776449461,291.5844657,0.00015836,2]
[407764438,1772776501159,300.0,0.00015935,2]
[407764439,1772776501231,1200.0,0.00015935,2]
[407764440,1772776501464,300.0,0.00015935,2]
[407764441,1772776510116,182.0,0.00015936,2]
[407764442,1772776523344,506.0,0.00014,2]
[407764443,1772776552196,2562.15123733,0.00015836,2]
[407764444,1772776552218,1065.9378455,0.00015836,2]
[407764445,1772776555443,3022.21312932,0.00015836,2]
[407764446,1772776561664,300.0,0.00015935,2]
[407764447,1772776609114,2500.0,0.00015836,2]
[407764448,1772776622621,250.0,0.00015935,2]
[407764449,1772776635689,941.51268414,0.00015836,2]
[407764450,1772776641219,675.74150819,0.00015935,2]
[407764451,1772776641251,675.74150819,0.00015935,2]
[407764452,1772776641295,568.86332466,0.00015935,2]
[407764453,1772776641319,106.87818353,0.00015935,2]
[407764454,1772776641717,675.74150819,0.00015935,2]
[407764455,1772776641745,675.74150819,0.00015935,2]
[407764456,1772776641776,675.74150819,0.00015935,2]
[407764457,1772776641808,675.74150819,0.00015935,2]
[407764458,1772776641841,675.74150819,0.00015935,2]
[407764459,1772776641870,675.74150819,0.00015935,2]
[407764460,1772776641902,675.74150819,0.00015935,2]
[407764461,1772776641929,675.74150819,0.00015935,2]
[407764462,1772776641968,675.74150819,0.00015935,2]
[407764463,1772776641998,675.74150819,0.00015935,2]
[407764464,1772776642026,675.74150819,0.00015935,2]
[407764465,1772776642133,675.74150819,0.00015935,2]
[407764466,1772776642168,675.74150819,0.00015935,2]
[407764467,1772776642243,675.74150819,0.00015935,2]
[407764468,1772776642282,432.75070181,0.00015935,2]
[407764469,1772776642313,242.99080638,0.00015935,2]
[407764470,1772776642352,675.74150819,0.00015935,2]
[407764471,1772776642389,675.74150819,0.00015935,2]
[407764472,1772776642417,675.74150819,0.00015935,2]
[407764473,1772776642455,675.74150819,0.00015935,2]
[407764474,1772776642487,675.74150819,0.00015935,2]
[407764475,1772776642516,675.74150819,0.00015935,2]
[407764476,1772776642549,675.74150819,0.00015935,2]
[407764477,1772776642578,675.74150819,0.00015935,2]
[407764478,1772776642606,675.74150819,0.00015935,2]
[407764479,1772776642638,675.74150819,0.00015935,2]
[407764480,1772776642664,675.74150819,0.00015935,2]
[407764481,1772776642705,675.74150819,0.00015935,2]
[407764482,1772776642735,675.74150819,0.00015935,2]
[407764483,1772776642762,675.74150819,0.00015935,2]
[407764484,1772776642789,296.63807896,0.00015935,2]
[407764485,1772776642813,379.10342923,0.00015935,2]
[407764486,1772776642845,675.74150819,0.00015935,2]
[407764487,1772776642878,675.74150819,0.00015935,2]
[407764488,1772776642908,675.74150819,0.00015935,2]
[407764489,1772776642985,675.74150819,0.00015935,2]
[407764490,1772776643014,675.74150819,0.00015935,2]
[407764491,1772776643041,675.74150819,0.00015935,2]
[407764492,1772776643068,675.74150819,0.00015935,2]
[407764493,1772776643097,675.74150819,0.00015935,2]
[407764494,1772776643129,675.74150819,0.00015935,2]
[407764495,1772776643162,675.74150819,0.00015935,2]
[407764496,1772776643196,675.74150819,0.00015935,2]
[407764497,1772776643227,675.74150819,0.00015935,2]
[407764498,1772776643263,675.74150819,0.00015935,2]
[407764499,1772776653464,675.74150819,0.00015935,2]
[407764500,1772776653495,160.52545611,0.00015935,2]
[407764501,1772776653519,515.21605208,0.00015935,2]
[407764502,1772776653551,675.74150819,0.00015935,2]
[407764503,1772776653581,675.74150819,0.00015935,2]
[407764504,1772776653620,675.74150819,0.00015935,2]
[407764505,1772776653670,675.74150819,0.00015935,2]
[407764506,1772776653716,675.74150819,0.00015935,2]
[407764507,1772776653748,675.74150819,0.00015935,2]
[407764508,1772776653780,675.74150819,0.00015935,2]
[407764509,1772776653812,675.74150819,0.00015935,2]
[407764510,1772776653847,675.74150819,0.00015935,2]
[407764511,1772776653887,675.74150819,0.00015935,2]
[407764512,1772776653934,675.74150819,0.00015935,2]
[407764513,1772776653972,675.74150819,0.00015935,2]
[407764514,1772776654005,675.74150819,0.00015935,2]
[407764515,1772776654037,675.74150819,0.00015935,2]
[407764516,1772776654069,24.41283326,0.00015935,2]
[407764517,1772776654096,651.32867493,0.00015935,2]
[407764518,1772776654148,675.74150819,0.00015935,2]
[407764519,1772776654184,675.74150819,0.00015935,2]
[407764520,1772776654222,675.74150819,0.00015935,2]
[407764521,1772776654259,675.74150819,0.00015935,2]
[407764522,1772776654307,675.74150819,0.00015935,2]
[407764523,1772776654360,675.74150819,0.00015935,2]
[407764524,1772776654398,675.74150819,0.00015935,2]
[407764525,1772776654439,675.74150819,0.00015935,2]
[407764526,1772776654470,675.74150819,0.00015935,2]
[407764527,1772776654509,675.74150819,0.00015935,2]
[407764528,1772776654543,675.74150819,0.00015935,2]
[407764529,1772776654573,675.74150819,0.00015935,2]
[407764530,1772776654622,675.74150819,0.00015935,2]
[407764531,1772776654663,564.0417186,0.00015935,2]
[407764532,1772776654688,111.69978959,0.00015935,2]
[407764533,1772776654731,675.74150819,0.00015935,2]
[407764534,1772776654760,675.74150819,0.00015935,2]
[407764535,1772776654795,675.74150819,0.00015935,2]
[407764536,1772776654826,675.74150819,0.00015935,2]
[407764537,1772776654855,675.74150819,0.00015935,2]
[407764538,1772776654893,675.74150819,0.00015935,2]
[407764539,1772776654941,675.74150819,0.00015935,2]
[407764540,1772776654976,675.74150819,0.00015935,2]
[407764541,1772776655014,675.74150819,0.00015935,2]
[407764542,1772776655059,675.74150819,0.00015935,2]
[407764543,1772776655091,675.74150819,0.00015935,2]
[407764544,1772776655140,675.74150819,0.00015935,2]
[407764545,1772776655177,675.74150819,0.00015935,2]
[407764546,1772776655213,675.74150819,0.00015935,2]
[407764547,1772776655255,427.92909575,0.00015935,2]
[407764548,1772776655283,247.81241244,0.00015935,2]
[407764549,1772776655333,675.74150819,0.00015935,2]
[407764550,1772776674053,155.849416,0.00015836,2]
[407764551,1772776676775,504.0,0.00014,2]
[407764552,1772776681294,300.0,0.00015935,2]
[407764553,1772776698146,500.0,0.00015935,2]
[407764554,1772776699900,544.79956516,0.00015935,2]
[407764555,1772776711040,180.28400863,0.00015935,2]
[407764557,1772776741231,300.0,0.00015935,2]
[407764558,1772776741612,150.23666304,0.00015836,2]
[407764559,1772776754499,155.849416,0.00015836,2]
[407764560,1772776769466,2500.0,0.00015836,2]
[407764561,1772776793459,3785.43701054,9.95e-05,2]
[407764562,1772776793484,10000.01,9.95e-05,2]
[407764563,1772776793507,10000.01,9.95e-05,2]
[407764564,1772776793528,10000.01,9.95e-05,2]
[407764565,1772776793550,10000.01,9.95e-05,2]
[407764566,1772776793572,1282.45329257,9.95e-05,2]
[407764567,1772776800606,4057.45413928,8e-05,2]
[407764568,1772776804054,4660.10256815,0.00011,2]
[407764569,1772776804077,3000.70321184,0.00011,2]
[407764570,1772776827863,2167.04100996,0.00015836,2]
[407764571,1772776835476,155.849416,0.00015836,2]
[407764572,1772776850411,804.93467201,0.00015,14]
[407764576,1772776862617,505.0,0.00014,2]
[407764580,1772776867762,205.0,9.8e-05,2]
[407764581,1772776877731,150.0,0.00015835,2]
[407764582,1772776892797,1299.473,0.00015617,2]
[407764583,1772776894089,1237.655,0.00015836,2]
[407764584,1772776900171,2680.8702,0.00015836,2]
[407764585,1772776926000,250.0,0.00015,2]
[407764586,1772776933424,393.1035483,7.888e-05,2]
[407764587,1772776933788,2500.0,0.00015836,2]
[407764588,1772776942840,1968.71279744,0.0001,2]
[407764589,1772776953465,823.82359857,0.00015836,2]
[407764590,1772776964004,174.40483056,0.00015836,2]
[407764591,1772777001891,150.0,0.00015736,2]
[407764592,1772777003819,-152.0,0.00015893,2]
[407764593,1772777003854,-152.0,0.00015893,2]
[407764594,1772777003883,-152.0,0.00015893,2]
[407764595,1772777003912,-155.0,0.00015893,2]
[407764596,1772777003940,-155.0,0.00015893,2]
[407764597,1772777003968,-213.37375715,0.00015926,2]
[407764598,1772777003997,-151.0,0.00015933,2]
[407764599,1772777004025,-300.0,0.00015934,2]
[407764600,1772777004055,-201.89772257,0.00015935,2]
[407764601,1772777004084,-500.0,0.00015935,2]
[407764602,1772777004113,-231.35969561,0.00015935,2]
[407764603,1772777004147,-500.0,0.00015935,2]
[407764604,1772777004183,-500.0,0.00015935,2]
[407764605,1772777004216,-500.0,0.00015935,2]
[407764606,1772777004251,-500.0,0.00015935,2]
[407764607,1772777004292,-500.0,0.00015935,2]
[407764608,1772777004593,-500.0,0.00015935,2]
[407764609,1772777004625,-500.0,0.00015935,2]
[407764610,1772777004656,-500.0,0.00015935,2]
[407764611,1772777004687,-574.31101067,0.00015935,2]
[407764612,1772777004718,-500.0,0.00015935,2]
[407764613,1772777004751,-500.0,0.00015935,2]
[407764614,1772777004784,-500.0,0.00015935,2]
[407764615,1772777004814,-500.0,0.00015935,2]
[407764616,1772777004845,-500.0,0.00015935,2]
[407764617,1772777004878,-351.38797866,0.00015935,2]
[407764618,1772777007074,-148.61202134,0.00015935,2]
[407764619,1772777007105,-500.0,0.00015935,2]
[407764620,1772777007133,-1200.0,0.00015935,2]
[407764621,1772777007160,-283.0,0.00015935,2]
[407764622,1772777007187,-151.91793441,0.00015935,2]
[407764623,1772777007214,-151.0,0.00015935,2]
[407764624,1772777007242,-151.0,0.00015935,2]
[407764625,1772777007269,-500.0,0.00015935,2]
[407764626,1772777007296,-500.0,0.00015935,2]
[407764627,1772777007324,-588.4343989,0.00015935,2]
[407764628,1772777015762,-1103.23679235,0.00015935,2]
[407764629,1772777015886,-2206.4735847,0.00015935,2]
[407764630,1772777069656,1559.0406,0.00015836,2]
[407764631,1772777074775,3265.28017452,0.00015836,2]
[407764632,1772777137338,-152.0,0.00015885,2]
[407764633,1772777137360,-152.0,0.00015885,2]
[407764634,1772777137379,-155.0,0.00015885,2]
[407764635,1772777137404,-177.0,0.00015885,2]
[407764636,1772777137437,-300.0,0.00015934,2]
[407764637,1772777137474,-300.0,0.00015934,2]
[407764638,1772777137499,-675.0,0.00015934,2]
[407764639,1772777137519,-341.91071146,0.00015935,2]
[407764640,1772777166785,152.0,0.00015885,2]
[407764641,1772777168284,156.0,0.00015885,2]
[407764642,1772777213925,505.0,0.00014,2]
[407764643,1772777214088,-300.0,0.00015934,2]
[407764644,1772777214112,-500.0,0.00015935,2]
[407764645,1772777214136,-397.14566785,0.00015935,2]
[407764646,1772777214156,-428.03011511,0.00015935,2]
[407764647,1772777215776,1950.336909,0.00015836,2]
[407764648,1772777226188,155.849416,0.00015836,2]
[407764649,1772777230458,152.0,0.00015894,2]
[407764650,1772777232531,156.0,0.00015894,2]
[407764651,1772777243986,505.0,0.00014,2]
[407764652,1772777249709,720.84564874,0.00015836,2]
[407764653,1772777253133,-150.0,0.000159,2]
[407764654,1772777253155,-150.0,0.000159,2]
[407764655,1772777253175,-507.43380699,0.00015935,2]
[407764656,1772777284676,164.433249,0.0001566,7]
[407764657,1772777292055,152.0,0.00015894,2]
[407764658,1772777339377,174.55390995,0.00015835,2]
[407764659,1772777344429,151.0,0.00014634,2]
[407764660,1772777346083,-150.0,0.000159,2]
[407764661,1772777346104,-492.56619301,0.00015935,2]
[407764662,1772777346126,-83.92167182,0.00015935,2]
[407764663,1772777346147,-556.40906517,0.00015935,2]
[407764664,1772777348281,1113.593449,7.945e-05,2]
[407764665,1772777351307,-4688.74305397,0.00015935,2]
[407764666,1772777351336,-122.52389206,0.00015935,2]
[407764667,1772777364120,151.0,0.00014634,2]
[407764668,1772777368085,-4666.36550662,0.00015836,2]
[407764669,1772777368506,569.6099809,0.00017,120]
[407764670,1772777373288,502.0,0.00014,2]
[407764672,1772777401188,300.0,0.00015835,2]
[407764673,1772777413148,175.0,0.00015836,2]
[407764674,1772777413544,862.23,0.00015826,2]
[407764675,1772777413758,862.23,0.00015826,2]
[407764676,1772777417204,213.37375716,0.00015826,2]
[407764682,1772777431888,-3650.36757386,0.00015836,2]
[407764683,1772777431955,-2503.4613006,0.00015836,2]
[407764684,1772777432022,-532.82685681,0.00015836,2]
[407764685,1772777432035,-345.51780687,0.00015836,2]
[407764686,1772777432083,-300.0,0.00015836,2]
[407764718,1772777437997,-1179.49709829,0.00015836,2]
[407764723,1772777438107,-2486821.96385695,0.00015836,2]
[407764724,1772777438117,-377.47610794,0.00015935,2]
[407764725,1772777438127,-500.0,0.00015935,2]
[407764726,1772777438136,-585.77667999,0.00015935,2]
[407764727,1772777438145,-500.0,0.00015935,2]
[407764728,1772777438154,-500.0,0.00015935,2]
[407764729,1772777438164,-500.0,0.00015935,2]
[407764730,1772777438177,-500.0,0.00015935,2]
[407764731,1772777438187,-500.0,0.00015935,2]
[407764732,1772777438197,-500.0,0.00015935,2]
[407764733,1772777438206,-500.0,0.00015935,2]
[407764734,1772777438216,-500.0,0.00015935,2]
[407764735,1772777438225,-500.0,0.00015935,2]
[407764736,1772777438235,-485.94909968,0.00015935,2]
[407764737,1772777438246,-500.0,0.00015935,2]
[407764738,1772777438255,-536.50967307,0.00015935,2]
[407764739,1772777438265,-1054.97104295,0.00015935,5]
[407764740,1772777438274,-500.0,0.00015935,2]
[407764741,1772777438284,-165.63365939,0.00015935,2]
[407764742,1772777438293,-500.0,0.00015935,2]
[407764743,1772777438302,-198.18120682,0.00015935,2]
[407764744,1772777438311,-200.0,0.00015935,2]
[407764745,1772777438320,-200.0,0.00015935,2]
[407764746,1772777438330,-200.0,0.00015935,2]
[407764747,1772777438339,-200.0,0.00015935,2]
[407764748,1772777438349,-200.0,0.00015935,2]
[407764749,1772777438358,-200.0,0.00015935,2]
[407764750,1772777438367,-200.0,0.00015935,2]
[407764751,1772777438380,-200.0,0.00015935,2]
[407764752,1772777438389,-200.0,0.00015935,2]
[407764753,1772777438398,-200.0,0.00015935,2]
[407764754,1772777438408,-200.0,0.00015935,2]
[407764755,1772777438417,-200.0,0.00015935,2]
[407764756,1772777438426,-200.0,0.00015935,2]
[407764757,1772777438435,-200.0,0.00015935,2]
[407764758,1772777438444,-220.0,0.00015935,2]
[407764759,1772777438453,-151.0,0.00015935,2]
[407764760,1772777438462,-151.0,0.00015935,2]
[407764761,1772777438471,-500.0,0.00015935,2]
[407764762,1772777438923,-500.0,0.00015935,2]
[407764763,1772777438932,-500.0,0.00015935,2]
[407764764,1772777438941,-500.0,0.00015935,2]
[407764765,1772777438951,-500.0,0.00015935,2]
[407764766,1772777438960,-353.53947128,0.00015935,2]
[407764767,1772777438969,-151.0,0.00015936,2]
[407764768,1772777438978,-151.0,0.00015936,2]
[407764769,1772777438987,-500.0,0.00015936,2]
[407764770,1772777438996,-151.0,0.00015936,2]
[407764771,1772777439005,-500.0,0.00015936,2]
[407764772,1772777439015,-151.0,0.00015936,2]
[407764773,1772777439023,-500.0,0.00015936,2]
[407764774,1772777439033,-151.0,0.00015936,2]
[407764775,1772777439041,-500.0,0.00015936,2]
[407764776,1772777439050,-151.0,0.00015936,2]
[407764777,1772777439059,-500.0,0.00015936,2]
[407764778,1772777439068,-151.0,0.00015936,2]
[407764779,1772777439077,-500.0,0.00015936,2]
[407764780,1772777439087,-151.0,0.00015936,2]
[407764781,1772777439096,-500.0,0.00015936,2]
[407764782,1772777439105,-151.0,0.00015936,2]
[407764783,1772777439114,-200.0,0.00015936,2]
[407764784,1772777439123,-500.0,0.00015936,2]
[407764785,1772777439133,-151.0,0.00015936,2]
[407764786,1772777439142,-500.0,0.00015936,2]
[407764787,1772777439152,-151.0,0.00015936,2]
[407764788,1772777439162,-500.0,0.00015936,2]
[407764789,1772777439171,-500.0,0.00015936,2]
[407764790,1772777439180,-500.0,0.00015936,2]
[407764791,1772777439190,-500.0,0.00015936,2]
[407764792,1772777439199,-500.0,0.00015936,2]
[407764793,1772777439208,-500.0,0.00015936,2]
[407764794,1772777439218,-500.0,0.00015936,2]
[407764795,1772777439227,-500.0,0.00015936,2]
[407764796,1772777439236,-500.0,0.00015936,2]
[407764797,1772777439245,-500.0,0.00015936,2]
[407764798,1772777439254,-500.0,0.00015936,2]
[407764799,1772777439263,-151.0,0.00015936,2]
[407764800,1772777439273,-500.0,0.00015936,2]
[407764801,1772777439282,-151.0,0.00015936,2]
[407764802,1772777439291,-500.0,0.00015936,2]
[407764803,1772777439300,-151.0,0.00015936,2]
[407764804,1772777439309,-500.0,0.00015936,2]
[407764805,1772777439318,-151.0,0.00015936,2]
[407764806,1772777439327,-151.0,0.00015936,2]
[407764807,1772777439336,-151.0,0.00015936,2]
[407764808,1772777439347,-151.0,0.00015936,2]
[407764809,1772777439356,-151.0,0.00015936,2]
[407764810,1772777439365,-151.0,0.00015936,2]
[407764811,1772777439374,-151.0,0.00015936,2]
[407764812,1772777439383,-151.0,0.00015936,2]
[407764813,1772777439392,-151.0,0.00015936,2]
[407764814,1772777439402,-151.0,0.00015936,2]
[407764815,1772777439411,-151.0,0.00015936,2]
[407764816,1772777439420,-151.0,0.00015936,2]
[407764817,1772777439429,-151.0,0.00015936,2]
[407764818,1772777439438,-151.0,0.00015936,2]
[407764819,1772777439447,-151.0,0.00015936,2]
[407764820,1772777439456,-151.0,0.00015936,2]
[407764821,1772777439465,-1000.0,0.00015936,2]
[407764822,1772777439474,-32912.143,0.00015936,2]
[407764823,1772777439483,-500.0,0.00015936,2]
[407764824,1772777439495,-298.41055689,0.00015936,2]
[407764825,1772777439506,-500.0,0.00015973,2]